bitfinex/quotes_SOLUSD_20220216
["timestamp","ask_amount","ask_price","bid_price","bid_amount"]
[1645017093216,1.37053041,101.81,101.77,60.94932605]
[1645017093414,1.37053041,101.82,101.77,60.94932605]
[1645017095313,0.25,101.81,101.77,60.94932605]
[1645017098123,0.25,101.81,101.77,158.75932605]
[1645017098822,0.25,101.81,101.77,60.94932605]
[1645017099328,0.25,101.81,101.77,85.65322605]
[1645017100028,0.25,101.81,101.77,183.46322605]
[1645017100226,0.25,101.81,101.77,85.65322605]
[1645017103130,0.25,101.81,101.77,183.46322605]
[1645017103332,7.66105657,101.85,101.78,116.0]
[1645017103534,1.37467657,101.83,101.8,35.72074837]
[1645017103733,8.01933537,101.87,101.82,39.83455932]
[1645017103933,3.10933537,101.87,101.82,39.83455932]
[1645017104131,8.01833537,101.87,101.82,39.83455932]
[1645017104734,17.84063537,101.87,101.82,54.56545932]
[1645017105353,0.25,101.86,101.82,54.56545932]
[1645017106954,0.3602788,101.87,101.82,152.37545932]
[1645017109153,0.3602788,101.87,101.82,54.56545932]
[1645017109559,0.3602788,101.87,101.82,152.37545932]
[1645017109958,0.3602788,101.87,101.82,166.40545932]
[1645017111056,0.3602788,101.87,101.82,68.59545932]
[1645017111259,0.3602788,101.87,101.82,166.40545932]
[1645017111456,0.3602788,101.87,101.82,68.59545932]
[1645017113360,0.3602788,101.87,101.82,54.56545932]
[1645017113961,0.3602788,101.87,101.82,152.37545932]
[1645017114762,0.3602788,101.87,101.82,54.56545932]
[1645017115362,0.3602788,101.87,101.82,77.51925932]
[1645017117469,0.3602788,101.87,101.82,54.56545932]
[1645017118267,15.0914788,101.87,101.82,54.56545932]
[1645017118667,0.3602788,101.87,101.82,54.56545932]
[1645017119868,0.6102788,101.87,101.82,54.56545932]
[1645017120269,0.6102788,101.87,101.82,152.37545932]
[1645017120671,0.3602788,101.87,101.82,152.37545932]
[1645017129981,0.39074968,101.88,101.82,152.37545932]
[1645017132179,0.28149936,101.89,101.85,193.81]
[1645017132378,1.13425392,101.9,101.87,14.7237]
[1645017132580,0.17816552,101.92,101.88,83.37888558]
[1645017133980,0.17816552,101.92,101.88,98.10088558]
[1645017134879,0.17816552,101.92,101.88,45.37888558]
[1645017135079,0.17816552,101.92,101.89,14.7194]
[1645017135279,0.17816552,101.92,101.91,44.94976892]
[1645017148104,0.17816552,101.92,101.9,3.03219996]
[1645017148305,0.17816552,101.92,101.88,22.5854]
[1645017148306,0.17816552,101.92,101.88,37.3073]
[1645017148507,0.17816552,101.92,101.85,63.103]
[1645017148707,23.09816552,101.92,101.86,22.5357]
[1645017149305,23.09816552,101.92,101.87,38.97938987]
[1645017150705,61.47530388,101.92,101.87,38.97938987]
[1645017150905,76.19870388,101.92,101.87,53.70278987]
[1645017152004,37.82156552,101.92,101.87,53.70278987]
[1645017153005,23.09816552,101.92,101.87,151.51278987]
[1645017153205,0.17816552,101.92,101.87,165.54278987]
[1645017154933,0.17816552,101.92,101.87,67.73278987]
[1645017156036,0.17816552,101.92,101.88,97.81]
[1645017156237,0.17816552,101.92,101.89,112.5287]
[1645017156436,0.17816552,101.92,101.9,3.03219996]
[1645017157036,0.17816552,101.92,101.91,40.1657288]
[1645017157939,0.17816552,101.92,101.91,54.8836288]
[1645017159142,0.17816552,101.92,101.91,40.1657288]
[1645017160550,0.35633104,101.93,101.91,54.8836288]
[1645017160744,0.67605488,101.93,101.92,1.01446416]
[1645017162844,0.67605488,101.93,101.91,54.8836288]
[1645017163348,0.67605488,101.93,101.92,1.01446416]
[1645017164349,0.67605488,101.93,101.92,15.73126416]
[1645017165048,0.67605488,101.93,101.92,1.01446416]
[1645017166451,23.1284656,101.95,101.92,1.01446416]
[1645017166452,1.28597888,101.95,101.92,1.01446416]
[1645017166653,0.75548848,101.95,101.93,72.0]
[1645017166855,0.75548848,101.95,101.92,1.01446416]
[1645017167451,0.75548848,101.95,101.93,39.5626897]
[1645017167651,0.75548848,101.95,101.93,54.2768897]
[1645017167851,1.00548848,101.95,101.93,54.2768897]
[1645017168158,0.75548848,101.95,101.93,54.2768897]
[1645017168650,0.75548848,101.95,101.94,17.74579996]
[1645017168851,0.75548848,101.95,101.94,3.03219996]
[1645017169452,1.00548848,101.95,101.94,3.03219996]
[1645017172954,1.00548848,101.95,101.93,54.2773897]
[1645017173155,1.00548848,101.95,101.94,1.01313482]
[1645017174360,1.00548848,101.95,101.93,39.5626897]
[1645017174558,1.00548848,101.95,101.94,1.01313482]
[1645017174757,1.00548848,101.95,101.93,39.5626897]
[1645017174960,1.00548848,101.95,101.93,54.2774897]
[1645017176157,1.00548848,101.95,101.94,1.01313482]
[1645017176360,1.00548848,101.95,101.94,15.72703482]
[1645017177059,1.00548848,101.95,101.94,1.01313482]
[1645017177458,1.00548848,101.95,101.94,15.72693482]
[1645017179262,1.00548848,101.95,101.94,1.01313482]
[1645017180685,1.00548848,101.95,101.93,54.2780897]
[1645017181087,1.00548848,101.95,101.92,14.7164]
[1645017182087,1.00548848,101.95,101.92,56.1453144]
[1645017182589,1.00548848,101.95,101.93,3.03219996]
[1645017183790,1.00548848,101.95,101.94,48.7561247]
[1645017185290,1.00548848,101.95,101.94,63.4702247]
[1645017185489,1.00548848,101.95,101.94,48.7561247]
[1645017192004,1.00548848,101.95,101.93,17.74719996]
[1645017193104,1.00548848,101.95,101.93,60.79686996]
[1645017194806,1.00548848,101.95,101.93,46.08186996]
[1645017195208,1.00548848,101.95,101.93,43.04967]
[1645017195919,15.72348848,101.95,101.92,22.7275]
[1645017196114,15.72348848,101.95,101.91,14.7175]
[1645017196814,15.72348848,101.95,101.91,55.1664214]
[1645017197218,48.57727646,101.94,101.91,14.7175]
[1645017197416,63.29667646,101.94,101.84,18.935]
[1645017197615,31.02487527,101.93,101.85,22.9002]
[1645017198016,31.38375271,101.93,101.85,22.9002]
[1645017198216,39.46597367,101.92,101.86,43.11384728]
[1645017198419,26.47675271,101.93,101.86,140.92384728]
[1645017198620,0.35887744,101.93,101.86,145.83084728]
[1645017199048,0.35887744,101.93,101.86,159.86084728]
[1645017199249,0.35887744,101.93,101.88,97.81]
[1645017199444,0.35887744,101.93,101.89,23.6325]
[1645017199646,0.35887744,101.93,101.9,40.65578511]
[1645017200046,0.35887744,101.93,101.91,3.03219996]
[1645017200245,0.35887744,101.93,101.92,38.63467349]
[1645017210457,0.35887744,101.93,101.89,23.6325]
[1645017211359,0.35887744,101.93,101.9,34.67252319]
[1645017212661,0.35887744,101.93,101.89,23.6325]
[1645017213472,15.07987744,101.93,101.88,24.5157]
[1645017213663,45.56744068,101.92,101.88,24.5157]
[1645017213864,45.56744068,101.92,101.87,45.75825352]
[1645017215767,45.56744068,101.92,101.86,23.3081]
[1645017215768,60.29074068,101.92,101.86,23.3081]
[1645017215972,65.19774068,101.92,101.86,23.3081]
[1645017216768,65.19774068,101.92,101.87,39.38666211]
[1645017216969,83.56904068,101.92,101.87,39.38666211]
[1645017218391,88.47604068,101.92,101.87,39.38666211]
[1645017218594,83.56904068,101.92,101.87,39.38666211]
[1645017222098,88.47604068,101.92,101.87,39.38666211]
[1645017222699,88.47604068,101.92,101.86,23.3081]
[1645017223601,89.85349961,101.92,101.86,69.81142309]
[1645017224700,1.37745893,101.91,101.86,23.3081]
[1645017224900,14.7264,101.9,101.86,23.3081]
[1645017225400,14.7264,101.9,101.86,121.1181]
[1645017225606,1.37745893,101.91,101.87,139.26404972]
[1645017225800,1.37745893,101.91,101.87,41.45404972]
[1645017226207,46.94489961,101.92,101.87,41.45404972]
[1645017226802,0.25,101.91,101.87,41.45404972]
[1645017234016,39.32728466,101.91,101.87,41.45404972]
[1645017234516,54.05088466,101.91,101.87,41.45404972]
[1645017234918,55.42834359,101.91,101.87,41.45404972]
[1645017235418,54.05088466,101.91,101.87,41.45404972]
[1645017237019,55.42834359,101.91,101.87,41.45404972]
[1645017237422,54.05088466,101.91,101.87,41.45404972]
[1645017237619,55.42834359,101.91,101.87,41.45404972]
[1645017237824,16.35105893,101.91,101.87,41.45404972]
[1645017238821,59.14353476,101.91,101.87,41.45404972]
[1645017239931,64.05053476,101.91,101.87,41.45404972]
[1645017241729,1.37745893,101.9,101.87,41.45404972]
[1645017241929,1.37745893,101.9,101.88,3.03219996]
[1645017242427,1.37745893,101.9,101.87,41.45404972]
[1645017242828,1.37745893,101.9,101.86,23.3081]
[1645017243834,1.37745893,101.9,101.87,45.5303609]
[1645017244656,16.35105893,101.91,101.87,45.5303609]
[1645017244851,1.37745893,101.9,101.87,45.5303609]
[1645017245852,16.10235893,101.9,101.87,45.5303609]
[1645017246454,16.10235893,101.9,101.86,23.3081]
[1645017246654,1.37745893,101.89,101.86,23.3081]
[1645017246856,14.7284,101.88,101.82,4.907]
[1645017247056,16.10585893,101.88,101.79,1.39160222]
[1645017247253,16.10585893,101.88,101.8,14.03]
[1645017247453,16.10585893,101.88,101.82,37.14460464]
[1645017248261,14.7284,101.88,101.82,37.14460464]
[1645017249456,39.4749,101.88,101.82,37.14460464]
[1645017249655,43.43224479,101.87,101.82,37.14460464]
[1645017249856,43.43224479,101.87,101.82,51.87270464]
[1645017250258,43.43224479,101.87,101.82,37.14460464]
[1645017250656,39.4749,101.88,101.82,37.14460464]
[1645017252457,14.7284,101.88,101.82,134.95460464]
[1645017252659,16.10435893,101.89,101.82,149.68260464]
[1645017252860,16.10435893,101.89,101.83,22.7186]
[1645017253158,25.56975893,101.9,101.83,120.5286]
[1645017253560,25.56975893,101.9,101.84,38.65729676]
[1645017253958,40.29525893,101.9,101.84,53.38219676]
[1645017254458,0.25,101.89,101.84,53.38219676]
[1645017255058,1.37745893,101.9,101.84,151.19219676]
[1645017255260,16.10155893,101.91,101.84,151.19219676]
[1645017256064,1.37745893,101.91,101.84,151.19219676]
[1645017256561,1.37745893,101.91,101.85,24.4151]
[1645017256763,1.37745893,101.91,101.85,39.1385]
[1645017256963,1.37745893,101.91,101.86,47.16613291]
[1645017257362,0.25,101.9,101.86,47.16613291]
[1645017257866,16.10115893,101.91,101.86,47.16613291]
[1645017260370,0.25,101.9,101.86,47.16613291]
[1645017264674,14.9752,101.9,101.86,47.16613291]
[1645017265080,59.80701181,101.9,101.86,47.16613291]
[1645017265277,61.18447074,101.9,101.86,47.16613291]
[1645017265481,61.18447074,101.9,101.85,24.4151]
[1645017266475,61.18447074,101.9,101.85,60.19353729]
[1645017267977,4.907,101.89,101.85,60.19353729]
[1645017268179,19.6345,101.89,101.85,60.19353729]
[1645017268679,14.7275,101.89,101.85,60.19353729]
[1645017268880,43.98081863,101.88,101.85,60.19353729]
[1645017269079,43.98081863,101.88,101.85,35.77843729]
[1645017269279,58.70901863,101.88,101.85,35.77843729]
[1645017269679,14.7282,101.88,101.85,35.77843729]
[1645017272081,58.66048948,101.88,101.85,35.77843729]
[1645017272580,14.7282,101.88,101.85,35.77843729]
[1645017277083,14.7282,101.88,101.83,23.0462]
[1645017277285,37.633,101.88,101.83,23.0462]
[1645017278085,37.633,101.88,101.84,37.18857901]
[1645017278988,14.727,101.89,101.84,37.18857901]
[1645017279187,24.27815893,101.91,101.84,60.16287901]
[1645017279787,58.67406171,101.91,101.84,60.16287901]
[1645017280185,24.27815893,101.91,101.84,172.69847901]
[1645017280386,1.37745893,101.91,101.84,172.69847901]
[1645017280588,1.37745893,101.91,101.84,186.72847901]
[1645017280789,0.25,101.9,101.84,186.72847901]
[1645017281186,0.25,101.9,101.86,55.21929511]
[1645017281389,0.25,101.9,101.86,79.91979511]
[1645017282491,40.39795893,101.92,101.86,177.72979511]
[1645017282492,1.37745893,101.92,101.86,177.72979511]
[1645017282690,0.35887744,101.93,101.89,112.5274]
[1645017283588,0.35887744,101.93,101.9,38.21751634]
[1645017283990,0.35887744,101.93,101.91,3.03219996]
[1645017284189,0.35887744,101.93,101.92,43.9491801]
[1645017284591,0.39661104,101.95,101.92,43.9491801]
[1645017285415,0.39661104,101.95,101.93,3.03219996]
[1645017285917,2.09859895,101.96,101.94,47.42189686]
[1645017285918,1.49520999,101.96,101.94,47.42189686]
[1645017286117,0.11642494,101.96,101.94,47.42189686]
[1645017286316,0.36642494,101.96,101.94,47.42189686]
[1645017286519,0.36642494,101.96,101.91,14.716]
[1645017287620,0.36642494,101.96,101.92,47.3832595]
[1645017288519,15.08342494,101.96,101.92,47.3832595]
[1645017290724,14.83342494,101.96,101.92,47.3832595]
[1645017290924,15.10777746,101.96,101.92,47.3832595]
[1645017291325,20.01177746,101.96,101.92,47.3832595]
[1645017291624,15.10777746,101.96,101.92,47.3832595]
[1645017291824,0.39077746,101.96,101.92,47.3832595]
[1645017292025,0.25,101.95,101.92,47.3832595]
[1645017292227,0.25,101.95,101.92,62.0987595]
[1645017293829,0.25,101.95,101.93,3.03219996]
[1645017294028,47.33397925,101.95,101.93,3.03219996]
[1645017294228,47.33397925,101.95,101.92,47.3832595]
[1645017294830,0.25,101.95,101.92,47.3832595]
[1645017295834,14.9687,101.95,101.92,47.3832595]
[1645017297333,63.27810843,101.95,101.92,47.3832595]
[1645017297532,63.27810843,101.95,101.9,37.6965]
[1645017298132,63.27810843,101.95,101.9,22.9788]
[1645017298532,63.27810843,101.95,101.9,59.95186851]
[1645017298734,14.9687,101.95,101.9,59.95186851]
[1645017298936,15.10817746,101.96,101.9,59.95186851]
[1645017299937,15.10817746,101.96,101.9,74.66976851]
[1645017300338,0.25,101.95,101.9,74.66976851]
[1645017303737,0.39077746,101.96,101.9,74.66976851]
[1645017305142,0.64077746,101.96,101.9,74.66976851]
[1645017305342,41.60804037,101.95,101.9,74.66976851]
[1645017308143,2.01956251,101.96,101.9,74.66976851]
[1645017309144,41.52758177,101.96,101.9,74.66976851]
[1645017309845,1.37878505,101.95,101.9,74.66976851]
[1645017311850,46.69197707,101.94,101.9,74.66976851]
[1645017312053,52.80197707,101.94,101.9,22.9788]
[1645017312253,54.18076212,101.94,101.87,14.03]
[1645017312450,1.37878505,101.92,101.84,15.42160222]
[1645017312652,1.37878505,101.91,101.83,48.9286]
[1645017312861,8.46217527,101.91,101.83,62.9586]
[1645017313053,43.43013164,101.9,101.84,41.16158778]
[1645017313251,53.24733164,101.9,101.84,41.16158778]
[1645017313851,38.52213164,101.9,101.84,138.97158778]
[1645017314853,38.52213164,101.9,101.84,153.69658778]
[1645017316255,19.6323,101.91,101.84,153.69658778]
[1645017316456,4.908,101.91,101.84,153.69658778]
[1645017316859,4.908,101.91,101.85,0.25]
[1645017317058,39.7027,101.92,101.86,14.7225]
[1645017317259,83.75619739,101.92,101.87,45.35874925]
[1645017318159,44.6097,101.92,101.87,45.35874925]
[1645017318563,39.7027,101.92,101.87,45.35874925]
[1645017319260,78.19392044,101.92,101.87,45.35874925]
[1645017319659,83.10092044,101.92,101.87,45.35874925]
[1645017321066,78.19392044,101.92,101.87,45.35874925]
[1645017322368,78.19392044,101.92,101.85,22.6304]
[1645017322571,83.10092044,101.92,101.85,22.6304]
[1645017323271,83.10092044,101.92,101.86,44.34997401]
[1645017324967,83.10092044,101.92,101.86,43.84997401]
[1645017325469,78.19392044,101.92,101.86,43.84997401]
[1645017325670,39.7027,101.92,101.86,43.84997401]
[1645017325872,1.37878505,101.94,101.86,43.84997401]
[1645017326069,1.37878505,101.94,101.87,38.4409]
[1645017326070,24.68878505,101.94,101.87,38.4409]
[1645017326270,23.31,101.94,101.87,38.6909]
[1645017326694,62.97600325,101.94,101.88,42.16696844]
[1645017326895,77.69600325,101.94,101.88,42.16696844]
[1645017327090,80.13617852,101.94,101.88,42.16696844]
[1645017327692,77.69600325,101.94,101.88,42.16696844]
[1645017327891,77.69600325,101.94,101.88,56.88636844]
[1645017328393,80.13617852,101.94,101.88,56.88636844]
[1645017328591,0.25,101.93,101.88,56.88636844]
[1645017329797,1.37878505,101.95,101.89,0.25]
[1645017329996,25.41576251,101.96,101.89,0.25]
[1645017330194,25.41576251,101.96,101.9,14.716]
[1645017330397,71.54804744,101.96,101.91,36.93630634]
[1645017330594,24.03697746,101.96,101.91,36.93630634]
[1645017331799,24.03697746,101.96,101.91,51.65160634]
[1645017332004,0.39077746,101.96,101.91,149.46160634]
[1645017332199,0.39077746,101.96,101.91,163.49160634]
[1645017337105,0.39077746,101.96,101.91,65.68160634]
[1645017337304,47.19676654,101.96,101.91,65.68160634]
[1645017337505,0.39077746,101.96,101.91,65.68160634]
[1645017337707,0.39077746,101.96,101.91,89.75380634]
[1645017339506,0.39077746,101.96,101.91,75.03850634]
[1645017339707,39.65412045,101.96,101.91,75.03850634]
[1645017340311,0.39077746,101.96,101.91,75.03850634]
[1645017341315,0.39077746,101.96,101.91,89.75360634]
[1645017342014,0.39077746,101.96,101.91,187.56360634]
[1645017342413,0.39077746,101.96,101.91,89.75360634]
[1645017342812,2.83095273,101.96,101.91,61.00850634]
[1645017343015,0.39077746,101.96,101.91,61.00850634]
[1645017343512,38.12903135,101.96,101.91,61.00850634]
[1645017343713,0.39077746,101.96,101.91,61.00850634]
[1645017344912,53.35709433,101.96,101.91,61.00850634]
[1645017350623,54.73587938,101.96,101.91,61.00850634]
[1645017351027,4.905,101.95,101.88,24.4174]
[1645017351228,14.7219,101.93,101.85,14.03]
[1645017351425,14.7219,101.93,101.84,46.9219]
[1645017351724,14.7219,101.93,101.84,51.8289]
[1645017351924,14.7219,101.93,101.85,136.77928318]
[1645017352129,23.3979,101.92,101.86,23.5514]
[1645017352948,23.3979,101.92,101.87,44.63606066]
[1645017353445,63.81951281,101.92,101.87,44.63606066]
[1645017353647,23.3979,101.92,101.87,44.63606066]
[1645017355348,64.7787109,101.92,101.87,44.63606066]
[1645017355850,23.3979,101.92,101.87,44.63606066]
[1645017357751,28.3049,101.92,101.87,44.63606066]
[1645017358651,28.3049,101.92,101.87,59.35696066]
[1645017358852,23.3979,101.92,101.87,59.35696066]
[1645017360154,38.1204,101.92,101.87,44.63606066]
[1645017360555,38.1204,101.92,101.84,37.4005]
[1645017360854,4.907,101.91,101.84,23.3705]
[1645017361555,36.5663289,101.9,101.85,35.65619389]
[1645017362955,4.907,101.91,101.85,35.65619389]
[1645017363157,27.21686032,101.92,101.85,35.65619389]
[1645017363858,14.7255,101.9,101.85,35.65619389]
[1645017364057,35.11103144,101.89,101.85,35.65619389]
[1645017366759,35.11103144,101.89,101.84,23.3705]
[1645017366959,52.27870671,101.89,101.81,14.03]
[1645017367159,22.9797,101.88,101.81,14.03]
[1645017367860,36.51448658,101.87,101.82,41.95904255]
[1645017368061,51.24488658,101.87,101.82,41.95904255]
[1645017368261,51.24488658,101.87,101.8,38.6965]
[1645017368459,51.24488658,101.87,101.8,23.9663]
[1645017369160,51.24488658,101.87,101.8,38.6977]
[1645017369362,51.24488658,101.87,101.81,40.50552238]
[1645017369560,53.68506185,101.87,101.81,40.50552238]
[1645017370163,51.24488658,101.87,101.81,55.23612238]
[1645017372568,53.68506185,101.87,101.8,14.7331]
[1645017372763,14.7346,101.84,101.78,23.6177]
[1645017373464,51.72172358,101.84,101.79,44.54835333]
[1645017374666,36.98712358,101.84,101.79,59.28305333]
[1645017374866,14.7347,101.85,101.79,59.28305333]
[1645017375867,36.13970159,101.84,101.79,59.28305333]
[1645017376066,50.87540159,101.84,101.79,59.28305333]
[1645017376267,50.87540159,101.84,101.79,44.54835333]
[1645017377468,50.87540159,101.84,101.79,59.28285333]
[1645017377469,36.13970159,101.84,101.79,59.28285333]
[1645017380270,14.7345,101.85,101.79,59.28285333]
[1645017381268,52.38662479,101.85,101.79,59.28285333]
[1645017381870,0.25,101.84,101.79,59.28285333]
[1645017382470,0.25,101.84,101.79,82.71125333]
[1645017383971,0.25,101.84,101.79,194.55125333]
[1645017384172,6.28878505,101.9,101.8,0.25]
[1645017384372,24.5501,101.89,101.83,14.7265]
[1645017384671,24.5501,101.89,101.84,23.3124]
[1645017384872,63.75392381,101.89,101.85,41.10092579]
[1645017385673,63.75392381,101.89,101.85,55.82692579]
[1645017386073,24.3001,101.89,101.85,55.82692579]
[1645017386900,18.54356032,101.92,101.85,55.82692579]
[1645017387101,56.7705889,101.92,101.85,55.82692579]
[1645017388406,0.25,101.91,101.85,55.82692579]
[1645017397119,14.9753,101.91,101.85,55.82692579]
[1645017397324,42.13697527,101.91,101.85,55.82692579]
[1645017397720,43.06981528,101.9,101.85,55.82692579]
[1645017399625,24.9715,101.91,101.85,55.82692579]
[1645017399825,24.9715,101.91,101.85,14.726]
[1645017400026,2.44017527,101.9,101.82,24.7592]
[1645017400230,7.34817527,101.9,101.82,24.7592]
[1645017400432,106.53696032,101.9,101.79,24.1594]
[1645017400626,25.75148505,101.89,101.77,14.03]
[1645017400830,36.06720058,101.87,101.79,47.83575591]
[1645017401228,2.44017527,101.86,101.79,62.56965591]
[1645017401427,2.44017527,101.86,101.79,160.37965591]
[1645017401628,28.19166032,101.89,101.8,24.1015]
[1645017401829,14.7288,101.88,101.8,24.1015]
[1645017402029,4.909,101.87,101.8,24.1015]
[1645017402229,7.34917527,101.87,101.8,24.1015]
[1645017402430,39.40866981,101.86,101.81,55.71593515]
[1645017402629,44.31766981,101.86,101.81,55.71593515]
[1645017402829,44.31766981,101.86,101.81,40.98433515]
[1645017403830,14.7318,101.86,101.81,40.98433515]
[1645017404833,14.7318,101.86,101.8,14.7326]
[1645017405131,19.6418,101.86,101.78,14.03]
[1645017405955,35.48550123,101.85,101.79,40.25659911]
[1645017406155,44.33297555,101.83,101.79,54.99049911]
[1645017407053,14.7345,101.84,101.79,54.99049911]
[1645017409955,14.7331,101.85,101.79,54.99049911]
[1645017410754,53.94977495,101.85,101.79,54.99049911]
[1645017413455,77.78287495,101.85,101.79,54.99049911]
[1645017416559,82.69287495,101.85,101.79,54.99049911]
[1645017417058,77.78287495,101.85,101.79,54.99049911]
[1645017418359,38.5662,101.85,101.79,54.99049911]
[1645017418567,4.91,101.87,101.79,152.80049911]
[1645017418764,24.7251,101.88,101.8,24.5931]
[1645017418963,24.7251,101.88,101.82,14.7299]
[1645017418964,4.909,101.87,101.82,14.7299]
[1645017419265,36.99692642,101.86,101.82,58.47155193]
[1645017419661,24.7251,101.88,101.82,58.47155193]
[1645017419862,14.73,101.87,101.82,58.47155193]
[1645017420661,59.2218973,101.87,101.82,58.47155193]
[1645017421262,0.25,101.86,101.82,58.47155193]
[1645017425964,24.7251,101.88,101.82,58.47155193]
[1645017426569,43.05481546,101.87,101.82,58.47155193]
[1645017427465,0.25,101.86,101.82,58.47155193]
[1645017429165,0.25,101.86,101.82,43.74165193]
[1645017430472,0.25,101.86,101.82,58.47165193]
[1645017431073,1.37878505,101.89,101.82,58.47165193]
[1645017431271,25.38148505,101.9,101.83,23.0898]
[1645017431473,66.5316992,101.9,101.84,48.37631397]
[1645017431870,25.38148505,101.9,101.84,48.37631397]
[1645017432473,0.25,101.89,101.84,48.37631397]
[1645017432874,63.13119841,101.89,101.84,63.10291397]
[1645017433172,62.88119841,101.89,101.84,63.10291397]
[1645017433773,14.7271,101.89,101.84,63.10291397]
[1645017434172,40.10688505,101.9,101.84,63.10291397]
[1645017434377,0.25,101.89,101.84,63.10291397]
[1645017434776,24.0027,101.9,101.84,63.10291397]
[1645017436276,0.25,101.89,101.84,63.10291397]
[1645017437282,37.87479175,101.89,101.84,63.10291397]
[1645017437981,0.25,101.89,101.84,63.10291397]
[1645017440205,0.25,101.89,101.86,14.7233]
[1645017440904,0.25,101.89,101.87,44.02942463]
[1645017443807,1.37878505,101.92,101.88,0.25]
[1645017444008,25.61178505,101.95,101.88,0.25]
[1645017444407,24.233,101.95,101.88,0.25]
[1645017444606,71.80515708,101.95,101.88,0.25]
[1645017444807,73.18394213,101.95,101.9,38.5225394]
[1645017445008,71.80515708,101.95,101.9,38.5225394]
[1645017445210,73.18394213,101.95,101.9,38.5225394]
[1645017445807,24.233,101.95,101.9,53.2412394]
[1645017448223,0.25,101.94,101.9,53.2412394]
[1645017449726,47.17382195,101.96,101.9,53.2412394]
[1645017449928,70.63292195,101.96,101.9,53.2412394]
[1645017450626,69.63292195,101.96,101.9,53.2412394]
[1645017451327,0.25,101.95,101.9,53.2412394]
[1645017451528,0.25,101.95,101.91,0.25]
[1645017451729,0.25,101.95,101.92,14.7161]
[1645017452429,0.25,101.95,101.93,37.95395639]
[1645017453830,0.25,101.95,101.92,14.7161]
[1645017454429,0.25,101.95,101.93,3.03219996]
[1645017455730,0.25,101.95,101.93,45.7323744]
[1645017457032,0.25,101.95,101.93,3.03219996]
[1645017459932,58.63814585,101.97,101.93,3.03219996]
[1645017461932,0.25,101.96,101.93,3.03219996]
[1645017462738,0.25,101.96,101.93,17.74699996]
[1645017463737,0.25,101.96,101.94,38.5039492]
[1645017463938,0.25,101.96,101.94,53.2172492]
[1645017464539,0.25,101.96,101.91,23.3327]
[1645017464742,0.25,101.96,101.95,1.02529039]
[1645017465674,0.25,101.96,101.93,60.94821006]
[1645017466373,0.25,101.96,101.94,1.02539096]
[1645017466974,0.25,101.96,101.94,15.73869096]
[1645017467975,0.25,101.96,101.94,1.02539096]
[1645017469675,0.25,101.96,101.94,15.73889096]
[1645017472878,0.25,101.96,101.94,14.7135]
[1645017475181,42.6615526,101.96,101.93,84.73671006]
[1645017475382,42.6615526,101.96,101.93,14.7147]
[1645017475581,42.6615526,101.96,101.9,73.3249]
[1645017475582,42.6615526,101.96,101.9,24.2747]
[1645017475781,1.37878505,101.95,101.9,24.2747]
[1645017476384,45.65773776,101.94,101.9,69.8814018]
[1645017476786,45.65773776,101.94,101.9,84.6000018]
[1645017476983,16.09778505,101.95,101.9,84.6000018]
[1645017478089,51.89449297,101.95,101.9,84.6000018]
[1645017479487,51.89449297,101.95,101.9,38.9933]
[1645017480691,51.89449297,101.95,101.9,81.62757225]
[1645017483492,54.33466824,101.95,101.9,81.62757225]
[1645017483891,51.89449297,101.95,101.9,81.62757225]
[1645017484291,37.17549297,101.95,101.9,81.62757225]
[1645017484495,35.79670792,101.95,101.9,81.62757225]
[1645017485696,37.17549297,101.95,101.9,81.62757225]
[1645017486296,0.25,101.94,101.9,81.62757225]
[1645017486697,0.25,101.94,101.9,38.9933]
[1645017489099,0.25,101.94,101.9,62.9432]
[1645017489900,0.25,101.94,101.91,35.6034662]
[1645017490101,1.37878505,101.95,101.91,50.3203662]
[1645017490704,25.58758505,101.97,101.91,50.3203662]
[1645017491100,45.84515536,101.96,101.91,50.3203662]
[1645017492322,0.25,101.95,101.91,50.3203662]
[1645017494726,0.25,101.95,101.91,14.7169]
[1645017495528,1.62878505,101.95,101.91,14.7169]
[1645017495727,48.01241195,101.94,101.91,14.7169]
[1645017495925,48.01241195,101.94,101.92,3.03219996]
[1645017497233,48.01241195,101.94,101.93,1.05928002]
[1645017497830,0.25,101.95,101.93,1.05928002]
[1645017499032,39.86218762,101.95,101.93,1.05928002]
[1645017499231,39.86218762,101.95,101.92,14.7155]
[1645017499532,0.25,101.95,101.92,56.43544569]
[1645017499931,0.25,101.95,101.93,3.03219996]
[1645017500334,0.25,101.95,101.92,14.7155]
[1645017500735,0.25,101.95,101.91,14.7169]
[1645017501146,42.32812543,101.95,101.91,14.7169]
[1645017502840,42.07812543,101.95,101.91,14.7169]